{"text_format":"3","workbook":"xlsx","n_sheets":2,"sheets":["実施報告シート(講師記入)","資格登録用データ"],"not_rendered":{"defined_names":2},"read":"whole","date_system":"1900"}

{"sheet":"実施報告シート(講師記入)","index":0,"n_rows":63,"n_cols":11,"rows_kept":63,"merged":[[4,5,4,7],[6,5,6,7],[15,9,15,11]]}
["ライフル射撃に関する講習会実施報告シート"]
[]
[null,"基本情報"]
[]
[null,null,"開講日:","2025-10-05","講師名:","ニチラタロウ"]
[]
[null,null,"会場名:","NTCイースト射撃場","実施加盟団体:","日本ライフル射撃協会",{"$nulls":3},"人数カウント：",{"$f":"COUNTA(受講者名簿[氏名])","v":2}]
[]
[]
[]
[null,"受講者名簿",{"$nulls":6},"本シートの提出について"]
[]
[null,null,"No.","氏名","JRSF ID","所属加盟団体","証書番号\n(受講番号)",null,"本Excelファイル を"]
[null,null,1,"ニチラジロウ",12345678,"佐賀県ライフル射撃協会","1234",null,"メールに添付し、下記宛先へ送信してください。"]
[null,null,2,"ニチラサブロウ",12345679,"長崎県ライフル射撃協会","1235"]
[null,null,3,{"$nulls":5},"宛先","shirai@riflesports.jp"]
[null,null,4]
[null,null,5]
[null,null,6]
[null,null,7]
[null,null,8]
[null,null,9]
[null,null,10]
[null,null,11]
[null,null,12]
[null,null,13]
[null,null,14]
[null,null,15]
[null,null,16]
[null,null,17]
[null,null,18]
[null,null,19]
[null,null,20]
[null,null,21]
[null,null,22]
[null,null,23]
[null,null,24]
[null,null,25]
[null,null,26]
[null,null,27]
[null,null,28]
[null,null,29]
[null,null,30]
[null,null,31]
[null,null,32]
[null,null,33]
[null,null,34]
[null,null,35]
[null,null,36]
[null,null,37]
[null,null,38]
[null,null,39]
[null,null,40]
[null,null,41]
[null,null,42]
[null,null,43]
[null,null,44]
[null,null,45]
[null,null,46]
[null,null,47]
[null,null,48]
[null,null,49]
[null,null,50]

{"sheet":"資格登録用データ","index":1,"n_rows":101,"n_cols":8,"rows_kept":101}
["JRSF ID","資格ID","承認日","有効期限","認定加盟団体","受講日","備考","登録番号"]
[{"$f":"受講者名簿[JRSF ID]","v":12345678},"JRSF_COURSE_RIFLE",{"$f":"'実施報告シート(講師記入)'!D9","v":"00:00:00"},null,"0000",{"$f":"'実施報告シート(講師記入)'!$D$5","v":"2025-10-05"},{"$f":"\"会場:\"&'実施報告シート(講師記入)'!$D$7&\n\"|実施団体:\"&'実施報告シート(講師記入)'!$F$7&\n\"|講師:\"&'実施報告シート(講師記入)'!$F$5","v":"会場:NTCイースト射撃場|実施団体:日本ライフル射撃協会|講師:ニチラタロウ"},{"$f":"受講者名簿[証書番号\n(受講番号)]","v":"1234"}]
[12345679,{"$f":"$B$2","v":"JRSF_COURSE_RIFLE"},{"$f":"$C$2","v":"00:00:00"},null,{"$f":"$E$2","v":"0000"},{"$f":"$F$2","v":"2025-10-05"},{"$f":"$G$2","v":"会場:NTCイースト射撃場|実施団体:日本ライフル射撃協会|講師:ニチラタロウ"},"1235"]
[0,{"$f":"$B$2","v":"JRSF_COURSE_RIFLE"},{"$f":"$C$2","v":"00:00:00"},null,{"$f":"$E$2","v":"0000"},{"$f":"$F$2","v":"2025-10-05"},{"$f":"$G$2","v":"会場:NTCイースト射撃場|実施団体:日本ライフル射撃協会|講師:ニチラタロウ"},0]
[0,"JRSF_COURSE_RIFLE","00:00:00",null,"0000","2025-10-05","会場:NTCイースト射撃場|実施団体:日本ライフル射撃協会|講師:ニチラタロウ",0]
[0,"JRSF_COURSE_RIFLE","00:00:00",null,"0000","2025-10-05","会場:NTCイースト射撃場|実施団体:日本ライフル射撃協会|講師:ニチラタロウ",0]
[0,"JRSF_COURSE_RIFLE","00:00:00",null,"0000","2025-10-05","会場:NTCイースト射撃場|実施団体:日本ライフル射撃協会|講師:ニチラタロウ",0]
[0,"JRSF_COURSE_RIFLE","00:00:00",null,"0000","2025-10-05","会場:NTCイースト射撃場|実施団体:日本ライフル射撃協会|講師:ニチラタロウ",0]
[0,"JRSF_COURSE_RIFLE","00:00:00",null,"0000","2025-10-05","会場:NTCイースト射撃場|実施団体:日本ライフル射撃協会|講師:ニチラタロウ",0]
[0,"JRSF_COURSE_RIFLE","00:00:00",null,"0000","2025-10-05","会場:NTCイースト射撃場|実施団体:日本ライフル射撃協会|講師:ニチラタロウ",0]
[0,"JRSF_COURSE_RIFLE","00:00:00",null,"0000","2025-10-05","会場:NTCイースト射撃場|実施団体:日本ライフル射撃協会|講師:ニチラタロウ",0]
[0,"JRSF_COURSE_RIFLE","00:00:00",null,"0000","2025-10-05","会場:NTCイースト射撃場|実施団体:日本ライフル射撃協会|講師:ニチラタロウ",0]
[0,"JRSF_COURSE_RIFLE","00:00:00",null,"0000","2025-10-05","会場:NTCイースト射撃場|実施団体:日本ライフル射撃協会|講師:ニチラタロウ",0]
[0,"JRSF_COURSE_RIFLE","00:00:00",null,"0000","2025-10-05","会場:NTCイースト射撃場|実施団体:日本ライフル射撃協会|講師:ニチラタロウ",0]
[0,"JRSF_COURSE_RIFLE","00:00:00",null,"0000","2025-10-05","会場:NTCイースト射撃場|実施団体:日本ライフル射撃協会|講師:ニチラタロウ",0]
[0,"JRSF_COURSE_RIFLE","00:00:00",null,"0000","2025-10-05","会場:NTCイースト射撃場|実施団体:日本ライフル射撃協会|講師:ニチラタロウ",0]
[0,"JRSF_COURSE_RIFLE","00:00:00",null,"0000","2025-10-05","会場:NTCイースト射撃場|実施団体:日本ライフル射撃協会|講師:ニチラタロウ",0]
[0,"JRSF_COURSE_RIFLE","00:00:00",null,"0000","2025-10-05","会場:NTCイースト射撃場|実施団体:日本ライフル射撃協会|講師:ニチラタロウ",0]
[0,"JRSF_COURSE_RIFLE","00:00:00",null,"0000","2025-10-05","会場:NTCイースト射撃場|実施団体:日本ライフル射撃協会|講師:ニチラタロウ",0]
[0,"JRSF_COURSE_RIFLE","00:00:00",null,"0000","2025-10-05","会場:NTCイースト射撃場|実施団体:日本ライフル射撃協会|講師:ニチラタロウ",0]
[0,"JRSF_COURSE_RIFLE","00:00:00",null,"0000","2025-10-05","会場:NTCイースト射撃場|実施団体:日本ライフル射撃協会|講師:ニチラタロウ",0]
[0,"JRSF_COURSE_RIFLE","00:00:00",null,"0000","2025-10-05","会場:NTCイースト射撃場|実施団体:日本ライフル射撃協会|講師:ニチラタロウ",0]
[0,"JRSF_COURSE_RIFLE","00:00:00",null,"0000","2025-10-05","会場:NTCイースト射撃場|実施団体:日本ライフル射撃協会|講師:ニチラタロウ",0]
[0,"JRSF_COURSE_RIFLE","00:00:00",null,"0000","2025-10-05","会場:NTCイースト射撃場|実施団体:日本ライフル射撃協会|講師:ニチラタロウ",0]
[0,"JRSF_COURSE_RIFLE","00:00:00",null,"0000","2025-10-05","会場:NTCイースト射撃場|実施団体:日本ライフル射撃協会|講師:ニチラタロウ",0]
[0,"JRSF_COURSE_RIFLE","00:00:00",null,"0000","2025-10-05","会場:NTCイースト射撃場|実施団体:日本ライフル射撃協会|講師:ニチラタロウ",0]
[0,"JRSF_COURSE_RIFLE","00:00:00",null,"0000","2025-10-05","会場:NTCイースト射撃場|実施団体:日本ライフル射撃協会|講師:ニチラタロウ",0]
[0,"JRSF_COURSE_RIFLE","00:00:00",null,"0000","2025-10-05","会場:NTCイースト射撃場|実施団体:日本ライフル射撃協会|講師:ニチラタロウ",0]
[0,"JRSF_COURSE_RIFLE","00:00:00",null,"0000","2025-10-05","会場:NTCイースト射撃場|実施団体:日本ライフル射撃協会|講師:ニチラタロウ",0]
[0,"JRSF_COURSE_RIFLE","00:00:00",null,"0000","2025-10-05","会場:NTCイースト射撃場|実施団体:日本ライフル射撃協会|講師:ニチラタロウ",0]
[0,"JRSF_COURSE_RIFLE","00:00:00",null,"0000","2025-10-05","会場:NTCイースト射撃場|実施団体:日本ライフル射撃協会|講師:ニチラタロウ",0]
[0,"JRSF_COURSE_RIFLE","00:00:00",null,"0000","2025-10-05","会場:NTCイースト射撃場|実施団体:日本ライフル射撃協会|講師:ニチラタロウ",0]
[0,"JRSF_COURSE_RIFLE","00:00:00",null,"0000","2025-10-05","会場:NTCイースト射撃場|実施団体:日本ライフル射撃協会|講師:ニチラタロウ",0]
[0,"JRSF_COURSE_RIFLE","00:00:00",null,"0000","2025-10-05","会場:NTCイースト射撃場|実施団体:日本ライフル射撃協会|講師:ニチラタロウ",0]
[0,"JRSF_COURSE_RIFLE","00:00:00",null,"0000","2025-10-05","会場:NTCイースト射撃場|実施団体:日本ライフル射撃協会|講師:ニチラタロウ",0]
[0,"JRSF_COURSE_RIFLE","00:00:00",null,"0000","2025-10-05","会場:NTCイースト射撃場|実施団体:日本ライフル射撃協会|講師:ニチラタロウ",0]
[0,"JRSF_COURSE_RIFLE","00:00:00",null,"0000","2025-10-05","会場:NTCイースト射撃場|実施団体:日本ライフル射撃協会|講師:ニチラタロウ",0]
[0,"JRSF_COURSE_RIFLE","00:00:00",null,"0000","2025-10-05","会場:NTCイースト射撃場|実施団体:日本ライフル射撃協会|講師:ニチラタロウ",0]
[0,"JRSF_COURSE_RIFLE","00:00:00",null,"0000","2025-10-05","会場:NTCイースト射撃場|実施団体:日本ライフル射撃協会|講師:ニチラタロウ",0]
[0,"JRSF_COURSE_RIFLE","00:00:00",null,"0000","2025-10-05","会場:NTCイースト射撃場|実施団体:日本ライフル射撃協会|講師:ニチラタロウ",0]
[0,"JRSF_COURSE_RIFLE","00:00:00",null,"0000","2025-10-05","会場:NTCイースト射撃場|実施団体:日本ライフル射撃協会|講師:ニチラタロウ",0]
[0,"JRSF_COURSE_RIFLE","00:00:00",null,"0000","2025-10-05","会場:NTCイースト射撃場|実施団体:日本ライフル射撃協会|講師:ニチラタロウ",0]
[0,"JRSF_COURSE_RIFLE","00:00:00",null,"0000","2025-10-05","会場:NTCイースト射撃場|実施団体:日本ライフル射撃協会|講師:ニチラタロウ",0]
[0,"JRSF_COURSE_RIFLE","00:00:00",null,"0000","2025-10-05","会場:NTCイースト射撃場|実施団体:日本ライフル射撃協会|講師:ニチラタロウ",0]
[0,"JRSF_COURSE_RIFLE","00:00:00",null,"0000","2025-10-05","会場:NTCイースト射撃場|実施団体:日本ライフル射撃協会|講師:ニチラタロウ",0]
[0,"JRSF_COURSE_RIFLE","00:00:00",null,"0000","2025-10-05","会場:NTCイースト射撃場|実施団体:日本ライフル射撃協会|講師:ニチラタロウ",0]
[0,"JRSF_COURSE_RIFLE","00:00:00",null,"0000","2025-10-05","会場:NTCイースト射撃場|実施団体:日本ライフル射撃協会|講師:ニチラタロウ",0]
[0,"JRSF_COURSE_RIFLE","00:00:00",null,"0000","2025-10-05","会場:NTCイースト射撃場|実施団体:日本ライフル射撃協会|講師:ニチラタロウ",0]
[0,"JRSF_COURSE_RIFLE","00:00:00",null,"0000","2025-10-05","会場:NTCイースト射撃場|実施団体:日本ライフル射撃協会|講師:ニチラタロウ",0]
[0,"JRSF_COURSE_RIFLE","00:00:00",null,"0000","2025-10-05","会場:NTCイースト射撃場|実施団体:日本ライフル射撃協会|講師:ニチラタロウ",0]
[0,"JRSF_COURSE_RIFLE","00:00:00",null,"0000","2025-10-05","会場:NTCイースト射撃場|実施団体:日本ライフル射撃協会|講師:ニチラタロウ",0]
[null,"JRSF_COURSE_RIFLE","00:00:00",null,"0000","2025-10-05","会場:NTCイースト射撃場|実施団体:日本ライフル射撃協会|講師:ニチラタロウ"]
[null,"JRSF_COURSE_RIFLE","00:00:00",null,"0000","2025-10-05","会場:NTCイースト射撃場|実施団体:日本ライフル射撃協会|講師:ニチラタロウ"]
[null,"JRSF_COURSE_RIFLE","00:00:00",null,"0000","2025-10-05","会場:NTCイースト射撃場|実施団体:日本ライフル射撃協会|講師:ニチラタロウ"]
[null,"JRSF_COURSE_RIFLE","00:00:00",null,"0000","2025-10-05","会場:NTCイースト射撃場|実施団体:日本ライフル射撃協会|講師:ニチラタロウ"]
[null,"JRSF_COURSE_RIFLE","00:00:00",null,"0000","2025-10-05","会場:NTCイースト射撃場|実施団体:日本ライフル射撃協会|講師:ニチラタロウ"]
[null,"JRSF_COURSE_RIFLE","00:00:00",null,"0000","2025-10-05","会場:NTCイースト射撃場|実施団体:日本ライフル射撃協会|講師:ニチラタロウ"]
[null,"JRSF_COURSE_RIFLE","00:00:00",null,"0000","2025-10-05","会場:NTCイースト射撃場|実施団体:日本ライフル射撃協会|講師:ニチラタロウ"]
[null,"JRSF_COURSE_RIFLE","00:00:00",null,"0000","2025-10-05","会場:NTCイースト射撃場|実施団体:日本ライフル射撃協会|講師:ニチラタロウ"]
[null,"JRSF_COURSE_RIFLE","00:00:00",null,"0000","2025-10-05","会場:NTCイースト射撃場|実施団体:日本ライフル射撃協会|講師:ニチラタロウ"]
[null,"JRSF_COURSE_RIFLE","00:00:00",null,"0000","2025-10-05","会場:NTCイースト射撃場|実施団体:日本ライフル射撃協会|講師:ニチラタロウ"]
[null,"JRSF_COURSE_RIFLE","00:00:00",null,"0000","2025-10-05","会場:NTCイースト射撃場|実施団体:日本ライフル射撃協会|講師:ニチラタロウ"]
[null,"JRSF_COURSE_RIFLE","00:00:00",null,"0000","2025-10-05","会場:NTCイースト射撃場|実施団体:日本ライフル射撃協会|講師:ニチラタロウ"]
[null,"JRSF_COURSE_RIFLE","00:00:00",null,"0000","2025-10-05","会場:NTCイースト射撃場|実施団体:日本ライフル射撃協会|講師:ニチラタロウ"]
[null,"JRSF_COURSE_RIFLE","00:00:00",null,"0000","2025-10-05","会場:NTCイースト射撃場|実施団体:日本ライフル射撃協会|講師:ニチラタロウ"]
[null,"JRSF_COURSE_RIFLE","00:00:00",null,"0000","2025-10-05","会場:NTCイースト射撃場|実施団体:日本ライフル射撃協会|講師:ニチラタロウ"]
[null,"JRSF_COURSE_RIFLE","00:00:00",null,"0000","2025-10-05","会場:NTCイースト射撃場|実施団体:日本ライフル射撃協会|講師:ニチラタロウ"]
[null,{"$f":"$B$2","v":"JRSF_COURSE_RIFLE"},{"$f":"$C$2","v":"00:00:00"},null,{"$f":"$E$2","v":"0000"},{"$f":"$F$2","v":"2025-10-05"},{"$f":"$G$2","v":"会場:NTCイースト射撃場|実施団体:日本ライフル射撃協会|講師:ニチラタロウ"}]
[null,"JRSF_COURSE_RIFLE","00:00:00",null,"0000","2025-10-05","会場:NTCイースト射撃場|実施団体:日本ライフル射撃協会|講師:ニチラタロウ"]
[null,"JRSF_COURSE_RIFLE","00:00:00",null,"0000","2025-10-05","会場:NTCイースト射撃場|実施団体:日本ライフル射撃協会|講師:ニチラタロウ"]
[null,"JRSF_COURSE_RIFLE","00:00:00",null,"0000","2025-10-05","会場:NTCイースト射撃場|実施団体:日本ライフル射撃協会|講師:ニチラタロウ"]
[null,"JRSF_COURSE_RIFLE","00:00:00",null,"0000","2025-10-05","会場:NTCイースト射撃場|実施団体:日本ライフル射撃協会|講師:ニチラタロウ"]
[null,"JRSF_COURSE_RIFLE","00:00:00",null,"0000","2025-10-05","会場:NTCイースト射撃場|実施団体:日本ライフル射撃協会|講師:ニチラタロウ"]
[null,"JRSF_COURSE_RIFLE","00:00:00",null,"0000","2025-10-05","会場:NTCイースト射撃場|実施団体:日本ライフル射撃協会|講師:ニチラタロウ"]
[null,"JRSF_COURSE_RIFLE","00:00:00",null,"0000","2025-10-05","会場:NTCイースト射撃場|実施団体:日本ライフル射撃協会|講師:ニチラタロウ"]
[null,"JRSF_COURSE_RIFLE","00:00:00",null,"0000","2025-10-05","会場:NTCイースト射撃場|実施団体:日本ライフル射撃協会|講師:ニチラタロウ"]
[null,"JRSF_COURSE_RIFLE","00:00:00",null,"0000","2025-10-05","会場:NTCイースト射撃場|実施団体:日本ライフル射撃協会|講師:ニチラタロウ"]
[null,"JRSF_COURSE_RIFLE","00:00:00",null,"0000","2025-10-05","会場:NTCイースト射撃場|実施団体:日本ライフル射撃協会|講師:ニチラタロウ"]
[null,"JRSF_COURSE_RIFLE","00:00:00",null,"0000","2025-10-05","会場:NTCイースト射撃場|実施団体:日本ライフル射撃協会|講師:ニチラタロウ"]
[null,"JRSF_COURSE_RIFLE","00:00:00",null,"0000","2025-10-05","会場:NTCイースト射撃場|実施団体:日本ライフル射撃協会|講師:ニチラタロウ"]
[null,"JRSF_COURSE_RIFLE","00:00:00",null,"0000","2025-10-05","会場:NTCイースト射撃場|実施団体:日本ライフル射撃協会|講師:ニチラタロウ"]
[null,"JRSF_COURSE_RIFLE","00:00:00",null,"0000","2025-10-05","会場:NTCイースト射撃場|実施団体:日本ライフル射撃協会|講師:ニチラタロウ"]
[null,"JRSF_COURSE_RIFLE","00:00:00",null,"0000","2025-10-05","会場:NTCイースト射撃場|実施団体:日本ライフル射撃協会|講師:ニチラタロウ"]
[null,"JRSF_COURSE_RIFLE","00:00:00",null,"0000","2025-10-05","会場:NTCイースト射撃場|実施団体:日本ライフル射撃協会|講師:ニチラタロウ"]
[null,"JRSF_COURSE_RIFLE","00:00:00",null,"0000","2025-10-05","会場:NTCイースト射撃場|実施団体:日本ライフル射撃協会|講師:ニチラタロウ"]
[null,"JRSF_COURSE_RIFLE","00:00:00",null,"0000","2025-10-05","会場:NTCイースト射撃場|実施団体:日本ライフル射撃協会|講師:ニチラタロウ"]
[null,"JRSF_COURSE_RIFLE","00:00:00",null,"0000","2025-10-05","会場:NTCイースト射撃場|実施団体:日本ライフル射撃協会|講師:ニチラタロウ"]
[null,"JRSF_COURSE_RIFLE","00:00:00",null,"0000","2025-10-05","会場:NTCイースト射撃場|実施団体:日本ライフル射撃協会|講師:ニチラタロウ"]
[null,"JRSF_COURSE_RIFLE","00:00:00",null,"0000","2025-10-05","会場:NTCイースト射撃場|実施団体:日本ライフル射撃協会|講師:ニチラタロウ"]
[null,"JRSF_COURSE_RIFLE","00:00:00",null,"0000","2025-10-05","会場:NTCイースト射撃場|実施団体:日本ライフル射撃協会|講師:ニチラタロウ"]
[null,"JRSF_COURSE_RIFLE","00:00:00",null,"0000","2025-10-05","会場:NTCイースト射撃場|実施団体:日本ライフル射撃協会|講師:ニチラタロウ"]
[null,"JRSF_COURSE_RIFLE","00:00:00",null,"0000","2025-10-05","会場:NTCイースト射撃場|実施団体:日本ライフル射撃協会|講師:ニチラタロウ"]
[null,"JRSF_COURSE_RIFLE","00:00:00",null,"0000","2025-10-05","会場:NTCイースト射撃場|実施団体:日本ライフル射撃協会|講師:ニチラタロウ"]
[null,"JRSF_COURSE_RIFLE","00:00:00",null,"0000","2025-10-05","会場:NTCイースト射撃場|実施団体:日本ライフル射撃協会|講師:ニチラタロウ"]
[null,"JRSF_COURSE_RIFLE","00:00:00",null,"0000","2025-10-05","会場:NTCイースト射撃場|実施団体:日本ライフル射撃協会|講師:ニチラタロウ"]
[null,"JRSF_COURSE_RIFLE","00:00:00",null,"0000","2025-10-05","会場:NTCイースト射撃場|実施団体:日本ライフル射撃協会|講師:ニチラタロウ"]
[null,"JRSF_COURSE_RIFLE","00:00:00",null,"0000","2025-10-05","会場:NTCイースト射撃場|実施団体:日本ライフル射撃協会|講師:ニチラタロウ"]
[null,"JRSF_COURSE_RIFLE","00:00:00",null,"0000","2025-10-05","会場:NTCイースト射撃場|実施団体:日本ライフル射撃協会|講師:ニチラタロウ"]
[null,"JRSF_COURSE_RIFLE","00:00:00",null,"0000","2025-10-05","会場:NTCイースト射撃場|実施団体:日本ライフル射撃協会|講師:ニチラタロウ"]
[null,"JRSF_COURSE_RIFLE","00:00:00",null,"0000","2025-10-05","会場:NTCイースト射撃場|実施団体:日本ライフル射撃協会|講師:ニチラタロウ"]
[null,"JRSF_COURSE_RIFLE","00:00:00",null,"0000","2025-10-05","会場:NTCイースト射撃場|実施団体:日本ライフル射撃協会|講師:ニチラタロウ"]